fUST/lending_fUST_20240922
["ID","MTS","AMOUNT","RATE_DAILY","PERIOD"]
[338853870,1726944642504,-500.0,0.00014074,2]
[338853871,1726944642514,-500.0,0.00014074,2]
[338853872,1726944642523,-500.0,0.00014074,2]
[338853873,1726944642532,-500.0,0.00014074,2]
[338853874,1726944642542,-500.0,0.00014074,2]
[338853875,1726944642553,-500.0,0.00014074,2]
[338853876,1726944642562,-500.0,0.00014074,2]
[338853877,1726944642572,-500.0,0.00014074,2]
[338853878,1726944642582,-500.0,0.00014074,2]
[338853879,1726944642591,-500.0,0.00014074,2]
[338853880,1726944642601,-500.0,0.00014074,2]
[338853881,1726944642610,-626.86672932,0.00014074,2]
[338853882,1726944642620,-500.0,0.00014074,2]
[338853883,1726944642629,-500.0,0.00014074,2]
[338853884,1726944642639,-500.0,0.00014074,2]
[338853885,1726944642649,-500.0,0.00014074,2]
[338853886,1726944642658,-500.0,0.00014074,2]
[338853887,1726944642668,-500.0,0.00014074,2]
[338853888,1726944642677,-500.0,0.00014074,2]
[338853889,1726944642686,-627.86952505,0.00014074,2]
[338853890,1726944642696,-500.0,0.00014074,2]
[338853891,1726944642706,-500.0,0.00014074,2]
[338853892,1726944642715,-500.0,0.00014074,2]
[338853893,1726944642725,-500.0,0.00014074,2]
[338853894,1726944642734,-176.49,0.00014074,2]
[338853895,1726944642744,-500.0,0.00014074,2]
[338853896,1726944642753,-500.0,0.00014074,2]
[338853897,1726944642763,-518.75003145,0.00014074,2]
[338853898,1726944642773,-500.0,0.00014074,2]
[338853899,1726944642783,-500.0,0.00014074,2]
[338853900,1726944642792,-410.96,0.00014074,2]
[338853901,1726944642801,-500.0,0.00014074,2]
[338853902,1726944642810,-500.0,0.00014074,2]
[338853903,1726944642822,-500.0,0.00014074,2]
[338853905,1726944642832,-500.0,0.00014074,2]
[338853907,1726944642841,-507.06096014,0.00014074,2]
[338853908,1726944642851,-500.0,0.00014074,2]
[338853909,1726944642861,-504.33293629,0.00014074,2]
[338853910,1726944642872,-500.0,0.00014074,2]
[338853911,1726944642882,-500.0,0.00014074,2]
[338853912,1726944642891,-500.0,0.00014074,2]
[338853913,1726944642901,-500.0,0.00014074,2]
[338853914,1726944642911,-639.55645757,0.00014074,2]
[338853915,1726944642921,-502.30677793,0.00014074,2]
[338853916,1726944642931,-502.70761251,0.00014074,2]
[338853917,1726944642940,-500.0,0.00014074,2]
[338853918,1726944642950,-500.0,0.00014084,2]
[338853919,1726944642960,-501.02762435,0.00014084,2]
[338853920,1726944642969,-501.70826868,0.00014084,2]
[338853921,1726944642979,-500.0,0.00014084,2]
[338853922,1726944642989,-159.28901,0.00014084,2]
[338853923,1726944642998,-491.85056426,0.00014316,2]
[338853924,1726944643008,-500.0,0.00014326,2]
[338853925,1726944643018,-500.0,0.00014334,2]
[338853926,1726944643028,-568.45,0.00014334,2]
[338853928,1726944643037,-500.0,0.00014334,2]
[338853930,1726944643047,-500.0,0.00014334,2]
[338853931,1726944643057,-500.0,0.00014334,2]
[338853933,1726944643066,-500.0,0.00014334,2]
[338853934,1726944643076,-298.05,0.00014334,2]
[338853935,1726944643086,-500.0,0.00014334,2]
[338853936,1726944643095,-3310.21,0.00014334,2]
[338853937,1726944643105,-500.0,0.00014334,2]
[338853939,1726944643115,-1788.69,0.00014334,2]
[338853940,1726944643124,-387.9,0.00014334,2]
[338853941,1726944643134,-500.0,0.00014334,2]
[338853942,1726944643144,-500.0,0.00014335,2]
[338853944,1726944643154,-500.0,0.00014335,2]
[338853945,1726944643164,-500.0,0.00014335,2]
[338853946,1726944643174,-500.0,0.00014335,2]
[338853947,1726944643184,-500.0,0.00014335,2]
[338853949,1726944643193,-621.6,0.00014335,2]
[338853950,1726944643203,-500.0,0.00014335,2]
[338853951,1726944643214,-500.0,0.00014335,2]
[338853952,1726944643224,-500.0,0.00014335,2]
[338853953,1726944643234,-500.0,0.00014335,2]
[338853954,1726944643247,-500.0,0.00014335,2]
[338853955,1726944643257,-1044.43,0.00014335,2]
[338853956,1726944643266,-500.0,0.00014335,2]
[338853957,1726944643276,-500.0,0.00014335,2]
[338853958,1726944643286,-500.0,0.00014335,2]
[338853959,1726944643295,-500.0,0.00014335,2]
[338853960,1726944643305,-500.0,0.00014335,2]
[338853961,1726944643315,-500.0,0.00014335,2]
[338853962,1726944643325,-500.0,0.00014335,2]
[338853964,1726944643334,-500.0,0.00014335,2]
[338853965,1726944643344,-500.0,0.00014335,2]
[338853966,1726944643353,-500.0,0.00014335,2]
[338853967,1726944643363,-6582.0,0.00014335,2]
[338853968,1726944643373,-500.0,0.00014335,2]
[338853969,1726944643382,-500.0,0.00014335,2]
[338853970,1726944643393,-245.92528213,0.00014336,2]
[338853971,1726944643402,-500.0,0.00014337,2]
[338853972,1726944643412,-500.0,0.00014337,2]
[338853973,1726944643422,-500.0,0.00014337,2]
[338853974,1726944643431,-712.63,0.00014337,2]
[338853975,1726944643441,-500.0,0.00014337,2]
[338853976,1726944643450,-500.0,0.00014337,2]
[338853977,1726944643460,-643.44,0.00014337,2]
[338853978,1726944643470,-600.0,0.00014339,2]
[338853979,1726944643479,-500.0,0.00014346,2]
[338853980,1726944643489,-509.81,0.00014346,2]
[338853981,1726944643499,-500.0,0.00014346,2]
[338853982,1726944643508,-500.0,0.00014346,2]
[338853983,1726944643518,-500.0,0.00014346,2]
[338853984,1726944643527,-832.77,0.00014346,2]
[338853985,1726944643537,-500.0,0.00014346,2]
[338853986,1726944643546,-500.0,0.00014346,2]
[338853987,1726944643556,-709.6,0.00014346,2]
[338853988,1726944643565,-500.0,0.00014346,2]
[338853989,1726944643575,-500.0,0.00014346,2]
[338853990,1726944643584,-508.43863048,0.00014346,2]
[338853991,1726944643593,-500.0,0.00014346,2]
[338853992,1726944643602,-500.0,0.00014346,2]
[338853993,1726944643612,-500.0,0.00014346,2]
[338853994,1726944643622,-500.0,0.00014346,2]
[338853995,1726944643631,-500.0,0.00014346,2]
[338853996,1726944643641,-500.0,0.00014346,2]
[338853997,1726944643650,-524.23712558,0.00014346,2]
[338853998,1726944643659,-500.0,0.00014346,2]
[338853999,1726944643669,-500.0,0.00014346,2]
[338854000,1726944643679,-610.16,0.00014346,2]
[338854001,1726944643688,-260.12733389,0.00014346,2]
[338854002,1726944643697,-500.0,0.00014346,2]
[338854003,1726944643706,-500.0,0.00014346,2]
[338854004,1726944643716,-500.0,0.00014346,2]
[338854005,1726944643727,-500.0,0.00014346,2]
[338854006,1726944643736,-500.0,0.00014346,2]
[338854007,1726944643746,-500.0,0.00014346,2]
[338854008,1726944643755,-200.0,0.00014346,2]
[338854009,1726944643765,-550.8,0.00014346,2]
[338854010,1726944643774,-500.0,0.00014348,2]
[338854011,1726944643784,-500.0,0.00014348,2]
[338854012,1726944643794,-500.0,0.00014348,2]
[338854013,1726944643804,-500.0,0.00014348,2]
[338854014,1726944643813,-500.0,0.00014348,2]
[338854015,1726944643826,-500.0,0.00014348,2]
[338854016,1726944643835,-500.0,0.00014348,2]
[338854017,1726944643845,-500.0,0.00014348,2]
[338854018,1726944643854,-500.0,0.00014348,2]
[338854019,1726944643866,-500.0,0.00014348,2]
[338854020,1726944644038,-528.6808732,0.00014348,2]
[338854021,1726944644047,-500.0,0.00014348,2]
[338854022,1726944644057,-500.0,0.00014348,2]
[338854023,1726944644067,-500.0,0.00014348,2]
[338854024,1726944644076,-500.0,0.00014348,2]
[338854025,1726944644086,-500.0,0.00014348,2]
[338854026,1726944644095,-600.0,0.00014364,2]
[338854027,1726944644104,-617.99440258,0.00014364,2]
[338854028,1726944644113,-150.0,0.000145,2]
[338854029,1726944644125,-543.32,0.000146,2]
[338854030,1726944644139,-500.0,0.00014608,2]
[338854031,1726944644154,-568.45,0.00014608,2]
[338854032,1726944644165,-500.0,0.00014608,2]
[338854033,1726944644176,-420.8,0.00014608,2]
[338854034,1726944644186,-500.0,0.00014608,2]
[338854035,1726944644196,-500.0,0.00014608,2]
[338854036,1726944644206,-500.0,0.00014608,2]
[338854037,1726944644216,-3310.21,0.00014608,2]
[338854038,1726944644226,-500.0,0.00014608,2]
[338854039,1726944644236,-1788.69,0.00014608,2]
[338854040,1726944644247,-500.0,0.00014609,2]
[338854041,1726944644258,-500.0,0.00014609,2]
[338854042,1726944644268,-500.0,0.00014609,2]
[338854043,1726944644278,-500.0,0.00014609,2]
[338854044,1726944644288,-500.0,0.00014609,2]
[338854045,1726944644298,-621.6,0.00014609,2]
[338854046,1726944644308,-529.28359655,0.00014609,2]
[338854047,1726944644317,-500.0,0.00014609,2]
[338854048,1726944644327,-500.0,0.00014609,2]
[338854049,1726944644337,-500.0,0.00014609,2]
[338854050,1726944644347,-1044.43,0.00014609,2]
[338854051,1726944644356,-481.38,0.00014609,2]
[338854052,1726944644367,-500.0,0.00014609,2]
[338854053,1726944644377,-500.0,0.00014609,2]
[338854054,1726944644387,-500.0,0.00014609,2]
[338854055,1726944644397,-6582.0,0.00014609,2]
[338854056,1726944644407,-500.0,0.00014609,2]
[338854057,1726944644416,-245.92528213,0.0001461,2]
[338854058,1726944644426,-500.0,0.00014611,2]
[338854059,1726944644436,-500.0,0.00014611,2]
[338854060,1726944644446,-500.0,0.00014611,2]
[338854061,1726944644455,-712.63,0.00014611,2]
[338854062,1726944644465,-500.0,0.00014611,2]
[338854063,1726944644474,-500.0,0.00014611,2]
[338854064,1726944644484,-643.44,0.00014611,2]
[338854065,1726944644494,-500.0,0.0001462,2]
[338854066,1726944644504,-509.81,0.0001462,2]
[338854067,1726944644514,-500.0,0.0001462,2]
[338854068,1726944644524,-500.0,0.0001462,2]
[338854069,1726944644534,-832.77,0.0001462,2]
[338854070,1726944644544,-500.0,0.0001462,2]
[338854071,1726944644554,-500.0,0.0001462,2]
[338854072,1726944644564,-709.6,0.0001462,2]
[338854073,1726944644574,-500.0,0.0001462,2]
[338854074,1726944644584,-500.0,0.0001462,2]
[338854075,1726944644594,-500.0,0.0001462,2]
[338854076,1726944644604,-500.0,0.0001462,2]
[338854077,1726944644613,-353.24,0.0001462,2]
[338854078,1726944644623,-500.0,0.0001462,2]
[338854079,1726944644633,-500.0,0.0001462,2]
[338854080,1726944644642,-610.16,0.0001462,2]
[338854081,1726944644652,-500.0,0.0001462,2]
[338854082,1726944644662,-500.0,0.0001462,2]
[338854083,1726944644672,-287.29,0.0001462,2]
[338854084,1726944644681,-514.93,0.0001462,2]
[338854085,1726944644691,-500.0,0.0001462,2]
[338854086,1726944644700,-500.0,0.0001462,2]
[338854087,1726944644710,-200.0,0.0001462,2]
[338854088,1726944644720,-550.8,0.0001462,2]
[338854089,1726944644730,-500.0,0.00014621,2]
[338854090,1726944644740,-500.0,0.00014621,2]
[338854091,1726944644753,-197.85405526,0.00014621,2]
[338854092,1726944644764,-500.0,0.00014621,2]
[338854093,1726944644775,-500.0,0.00014621,2]
[338854094,1726944644787,-500.0,0.00014621,2]
[338854095,1726944644800,-220.82233845,0.00014621,2]
[338854096,1726944644812,-500.0,0.00014621,2]
[338854097,1726944644826,-342.83556897,0.00014621,2]
[338854098,1726944644837,-500.0,0.00014621,2]
[338854099,1726944644847,-166.00125637,0.00014621,2]
[338854100,1726944644857,-500.0,0.00014621,2]
[338854101,1726944644872,-500.0,0.00014621,2]
[338854102,1726944644883,-500.0,0.00014621,2]
[338854103,1726944644893,-500.0,0.00014621,2]
[338854104,1726944644905,-500.0,0.00014622,2]
[338854105,1726944644916,-500.0,0.00014622,2]
[338854106,1726944644926,-217.3981368,0.00014622,2]
[338854107,1726944644938,-500.0,0.00014622,2]
[338854108,1726944644949,-500.0,0.00014622,2]
[338854109,1726944644959,-500.0,0.00014622,2]
[338854110,1726944644970,-500.0,0.00014622,2]
[338854111,1726944644980,-500.0,0.00014622,2]
[338854112,1726944644990,-500.0,0.00014622,2]
[338854113,1726944645000,-500.0,0.00014622,2]
[338854114,1726944645010,-616.84828035,0.00014622,2]
[338854115,1726944645020,-500.0,0.00014622,2]
[338854116,1726944645030,-330.36191335,0.00014622,2]
[338854117,1726944645040,-500.0,0.00014622,2]
[338854118,1726944645050,-500.0,0.00014622,2]
[338854119,1726944645060,-600.0,0.00014623,2]
[338854120,1726944645070,-500.0,0.00014776,2]
[338854121,1726944645079,-500.0,0.00014809,2]
[338854122,1726944645091,-500.0,0.00014809,2]
[338854123,1726944645100,-500.0,0.00014814,2]
[338854124,1726944645110,-500.0,0.00014814,2]
[338854125,1726944645122,-500.68393457,0.00014814,2]
[338854126,1726944645131,-500.0,0.00014814,2]
[338854127,1726944645141,-600.14169489,0.0001483,2]
[338854128,1726944645151,-500.0,0.0001483,2]
[338854129,1726944645161,-500.0,0.0001483,2]
[338854130,1726944645171,-500.0,0.0001483,2]
[338854131,1726944645181,-500.0,0.00014869,2]
[338854132,1726944645191,-245.92528213,0.00014873,2]
[338854133,1726944645205,-500.0,0.00014882,2]
[338854134,1726944645215,-568.45,0.00014882,2]
[338854135,1726944645224,-229.23,0.00014882,2]
[338854136,1726944645234,-500.0,0.00014882,2]
[338854137,1726944645244,-500.0,0.00014882,2]
[338854138,1726944645254,-500.0,0.00014882,2]
[338854139,1726944645264,-3310.21,0.00014882,2]
[338854140,1726944645273,-239.96,0.00014882,2]
[338854141,1726944645283,-1788.69,0.00014882,2]
[338854142,1726944645293,-500.0,0.00014883,2]
[338854143,1726944645302,-315.61596561,0.00014883,2]
[338854144,1726944645312,-500.0,0.00014883,2]
[338854145,1726944645322,-500.0,0.00014883,2]
[338854146,1726944645331,-500.0,0.00014883,2]
[338854147,1726944645341,-621.6,0.00014883,2]
[338854148,1726944645350,-500.0,0.00014883,2]
[338854149,1726944645360,-500.0,0.00014883,2]
[338854150,1726944645371,-500.0,0.00014883,2]
[338854151,1726944645380,-1044.43,0.00014883,2]
[338854152,1726944645392,-500.0,0.00014883,2]
[338854153,1726944645402,-500.0,0.00014883,2]
[338854154,1726944645413,-500.0,0.00014883,2]
[338854155,1726944645425,-6582.0,0.00014883,2]
[338854156,1726944645437,-500.0,0.00014883,2]
[338854157,1726944645448,-500.0,0.00014885,2]
[338854158,1726944645459,-389.35667443,0.00014885,2]
[338854159,1726944645469,-159.79670019,0.00014885,2]
[338854160,1726944645478,-712.63,0.00014885,2]
[338854161,1726944645488,-500.0,0.00014885,2]
[338854162,1726944645497,-500.0,0.00014885,2]
[338854163,1726944645507,-643.44,0.00014885,2]
[338854164,1726944645516,-500.0,0.00014894,2]
[338854165,1726944645526,-509.81,0.00014894,2]
[338854166,1726944645538,-500.0,0.00014894,2]
[338854167,1726944645550,-500.0,0.00014894,2]
[338854168,1726944645561,-832.77,0.00014894,2]
[338854169,1726944645571,-500.0,0.00014894,2]
[338854170,1726944645580,-209.69262105,0.00014894,2]
[338854171,1726944645590,-709.6,0.00014894,2]
[338854172,1726944645599,-500.0,0.00014894,2]
[338854173,1726944645609,-500.0,0.00014894,2]
[338854174,1726944645622,-500.0,0.00014894,2]
[338854175,1726944645632,-391.56868331,0.00014894,2]
[338854176,1726944645643,-500.0,0.00014894,2]
[338854177,1726944645652,-500.0,0.00014894,2]
[338854178,1726944645661,-610.16,0.00014894,2]
[338854179,1726944645670,-500.0,0.00014894,2]
[338854180,1726944645679,-472.96,0.00014894,2]
[338854181,1726944645688,-500.0,0.00014894,2]
[338854182,1726944645697,-500.0,0.00014894,2]
[338854183,1726944645707,-200.0,0.00014894,2]
[338854184,1726944645716,-550.8,0.00014894,2]
[338854185,1726944645726,-500.0,0.00014896,2]
[338854186,1726944645735,-376.66092736,0.00014896,2]
[338854187,1726944645748,-500.0,0.00014896,2]
[338854188,1726944645759,-454.51217959,0.00014896,2]
[338854189,1726944645769,-500.0,0.00014896,2]
[338854190,1726944645779,-500.0,0.00014896,2]
[338854191,1726944645790,-500.0,0.00014896,2]
[338854192,1726944645801,-500.0,0.00014896,2]
[338854193,1726944645812,-500.0,0.00014896,2]
[338854194,1726944645825,-500.0,0.00014896,2]
[338854195,1726944645835,-500.0,0.00014896,2]
[338854196,1726944645844,-500.0,0.00014896,2]
[338854197,1726944645854,-500.0,0.00014896,2]
[338854198,1726944645864,-485.67941946,0.00014896,2]
[338854199,1726944645873,-1382.63,0.00015,2]
[338854200,1726944645882,-500.0,0.00015021,2]
[338854201,1726944645892,-500.32795844,0.00015021,2]
[338854202,1726944645902,-500.0,0.00015021,2]
[338854203,1726944645912,-500.0,0.00015021,2]
[338854204,1726944645921,-500.0,0.00015021,2]
[338854205,1726944645931,-500.0,0.00015107,2]
[338854206,1726944645941,-500.0,0.00015107,2]
[338854207,1726944645952,-500.0,0.00015107,2]
[338854208,1726944645962,-245.92528213,0.00015147,2]
[338854209,1726944645971,-500.0,0.00015156,2]
[338854210,1726944645980,-568.45,0.00015156,2]
[338854211,1726944645990,-500.0,0.00015156,2]
[338854212,1726944645999,-500.0,0.00015156,2]
[338854213,1726944646009,-500.0,0.00015156,2]
[338854214,1726944646019,-3310.21,0.00015156,2]
[338854215,1726944646028,-1788.69,0.00015156,2]
[338854216,1726944646038,-500.0,0.00015157,2]
[338854217,1726944646047,-500.0,0.00015157,2]
[338854219,1726944646057,-500.0,0.00015157,2]
[338854221,1726944646066,-455.00433122,0.00015157,2]
[338854222,1726944646076,-621.6,0.00015157,2]
[338854223,1726944646095,-500.0,0.00015157,2]
[338854224,1726944646105,-500.0,0.00015157,2]
[338854225,1726944646115,-500.0,0.00015157,2]
[338854226,1726944646125,-1044.43,0.00015157,2]
[338854227,1726944646135,-500.0,0.00015157,2]
[338854228,1726944646145,-500.0,0.00015157,2]
[338854229,1726944646155,-500.0,0.00015157,2]
[338854230,1726944646167,-6582.0,0.00015157,2]
[338854231,1726944646178,-500.0,0.00015157,2]
[338854232,1726944646190,-500.0,0.00015159,2]
[338854233,1726944646201,-712.63,0.00015159,2]
[338854234,1726944646212,-500.0,0.00015159,2]
[338854235,1726944646222,-500.0,0.00015159,2]
[338854237,1726944646233,-643.44,0.00015159,2]
[338854238,1726944646242,-500.0,0.00015168,2]
[338854240,1726944646252,-509.81,0.00015168,2]
[338854242,1726944646262,-500.0,0.00015168,2]
[338854244,1726944646272,-500.0,0.00015168,2]
[338854246,1726944646281,-832.77,0.00015168,2]
[338854248,1726944646291,-413.0786524,0.00015168,2]
[338854250,1726944646301,-709.6,0.00015168,2]
[338854252,1726944646311,-500.0,0.00015168,2]
[338854253,1726944646320,-500.0,0.00015168,2]
[338854255,1726944646329,-500.0,0.00015168,2]
[338854257,1726944646339,-500.0,0.00015168,2]
[338854259,1726944646349,-500.0,0.00015168,2]
[338854261,1726944646358,-610.16,0.00015168,2]
[338854262,1726944646368,-500.0,0.00015168,2]
[338854263,1726944646377,-500.0,0.00015168,2]
[338854264,1726944646388,-500.0,0.00015168,2]
[338854265,1726944646398,-314.51393293,0.00015168,2]
[338854266,1726944646407,-550.8,0.00015168,2]
[338854267,1726944646417,-500.0,0.0001517,2]
[338854268,1726944646427,-483.05090178,0.0001517,2]
[338854269,1726944646437,-500.0,0.0001517,2]
[338854270,1726944646447,-500.0,0.0001517,2]
[338854271,1726944646456,-500.0,0.0001517,2]
[338854272,1726944646466,-500.0,0.0001517,2]
[338854273,1726944646475,-500.0,0.0001517,2]
[338854274,1726944646486,-500.0,0.0001517,2]
[338854275,1726944646496,-500.0,0.0001517,2]
[338854276,1726944646601,-500.0,0.0001517,2]
[338854277,1726944646613,-150.0,0.00015181,2]
[338854278,1726944646623,-150.0,0.00015208,2]
[338854279,1726944646632,-150.0,0.00015236,2]
[338854280,1726944646642,-225.0,0.0001524,2]
[338854281,1726944646652,-150.0,0.00015263,2]
[338854282,1726944646662,-150.0,0.00015291,2]
[338854283,1726944646673,-420.0,0.00015393,2]
[338854284,1726944646684,-300.0,0.000154,5]
[338854285,1726944646696,-245.92528213,0.00015421,2]
[338854286,1726944646705,-500.0,0.0001543,2]
[338854287,1726944646715,-568.45,0.0001543,2]
[338854288,1726944646725,-500.0,0.0001543,2]
[338854289,1726944646736,-500.0,0.0001543,2]
[338854290,1726944646748,-500.0,0.0001543,2]
[338854291,1726944646757,-3310.21,0.0001543,2]
[338854292,1726944646767,-1788.69,0.0001543,2]
[338854293,1726944646778,-500.0,0.00015431,2]
[338854294,1726944646788,-500.0,0.00015431,2]
[338854295,1726944646797,-500.0,0.00015431,2]
[338854296,1726944646808,-621.6,0.00015431,2]
[338854297,1726944646820,-500.0,0.00015431,2]
[338854298,1726944646831,-500.0,0.00015431,2]
[338854299,1726944646842,-500.0,0.00015431,2]
[338854300,1726944646852,-1044.43,0.00015431,2]
[338854301,1726944646862,-500.0,0.00015431,2]
[338854302,1726944646873,-500.0,0.00015431,2]
[338854303,1726944646883,-6582.0,0.00015431,2]
[338854304,1726944646892,-500.0,0.00015431,2]
[338854305,1726944646902,-500.0,0.00015433,2]
[338854306,1726944646912,-712.63,0.00015433,2]
[338854307,1726944646921,-500.0,0.00015433,2]
[338854308,1726944646930,-500.0,0.00015433,2]
[338854309,1726944646939,-643.44,0.00015433,2]
[338854310,1726944646952,-158.17754438,0.00015442,2]
[338854311,1726944646961,-509.81,0.00015442,2]
[338854312,1726944646971,-513.9924215,0.00015442,2]
[338854313,1726944646980,-500.0,0.00015442,2]
[338854314,1726944646990,-832.77,0.00015442,2]
[338854315,1726944646999,-709.6,0.00015442,2]
[338854316,1726944647009,-336.61644193,0.00015442,2]
[338854317,1726944647018,-500.0,0.00015442,2]
[338854318,1726944647028,-500.0,0.00015442,2]
[338854319,1726944647038,-500.0,0.00015442,2]
[338854320,1726944647047,-500.0,0.00015442,2]
[338854321,1726944647056,-610.16,0.00015442,2]
[338854322,1726944647065,-500.0,0.00015442,2]
[338854323,1726944647074,-500.0,0.00015442,2]
[338854324,1726944647083,-500.0,0.00015442,2]
[338854325,1726944647093,-550.8,0.00015442,2]
[338854326,1726944647102,-500.0,0.00015444,2]
[338854327,1726944647112,-500.0,0.00015444,2]
[338854328,1726944647123,-500.0,0.00015444,2]
[338854329,1726944647133,-500.0,0.00015444,2]
[338854330,1726944647142,-500.0,0.00015444,2]
[338854331,1726944647151,-500.0,0.00015444,2]
[338854332,1726944647161,-500.0,0.00015444,2]
[338854333,1726944647170,-500.0,0.00015444,2]
[338854334,1726944647179,-500.0,0.00015444,2]
[338854335,1726944647188,-420.0,0.00015456,2]
[338854336,1726944647197,-245.92528213,0.00015695,2]
[338854337,1726944647207,-500.0,0.00015704,2]
[338854338,1726944647216,-568.45,0.00015704,2]
[338854339,1726944647226,-500.0,0.00015704,2]
[338854340,1726944647235,-500.0,0.00015704,2]
[338854341,1726944647245,-500.0,0.00015704,2]
[338854342,1726944647255,-3310.21,0.00015704,2]
[338854343,1726944647265,-1788.69,0.00015704,2]
[338854344,1726944647275,-500.0,0.00015705,2]
[338854345,1726944647284,-446.58,0.00015705,2]
[338854346,1726944647293,-500.0,0.00015705,2]
[338854347,1726944647302,-621.6,0.00015705,2]
[338854348,1726944647311,-500.0,0.00015705,2]
[338854349,1726944647320,-500.0,0.00015705,2]
[338854350,1726944647330,-500.0,0.00015705,2]
[338854351,1726944647339,-1044.43,0.00015705,2]
[338854352,1726944647348,-288.46,0.00015705,2]
[338854353,1726944647358,-500.0,0.00015705,2]
[338854354,1726944647368,-6582.0,0.00015705,2]
[338854355,1726944647376,-500.0,0.00015705,2]
[338854356,1726944647386,-712.63,0.00015707,2]
[338854357,1726944647396,-500.0,0.00015707,2]
[338854358,1726944647405,-500.0,0.00015707,2]
[338854359,1726944647415,-643.44,0.00015707,2]
[338854360,1726944647424,-509.81,0.00015716,2]
[338854361,1726944647434,-500.0,0.00015716,2]
[338854362,1726944647443,-832.77,0.00015716,2]
[338854363,1726944647452,-709.6,0.00015716,2]
[338854364,1726944647461,-500.0,0.00015716,2]
[338854365,1726944647470,-500.0,0.00015716,2]
[338854366,1726944647479,-500.0,0.00015716,2]
[338854367,1726944647489,-500.0,0.00015716,2]
[338854368,1726944647498,-610.16,0.00015716,2]
[338854369,1726944647507,-500.0,0.00015716,2]
[338854370,1726944647516,-500.0,0.00015716,2]
[338854371,1726944647527,-500.0,0.00015716,2]
[338854372,1726944647536,-550.8,0.00015716,2]
[338854373,1726944647546,-500.0,0.00015718,2]
[338854374,1726944647555,-500.0,0.00015718,2]
[338854375,1726944647564,-500.0,0.00015718,2]
[338854376,1726944647573,-500.0,0.00015718,2]
[338854377,1726944647583,-492.84820899,0.00015718,2]
[338854378,1726944647591,-500.0,0.00015718,2]
[338854379,1726944647601,-500.0,0.00015718,2]
[338854380,1726944647610,-500.0,0.00015718,2]
[338854381,1726944647620,-500.0,0.00015718,2]
[338854382,1726944647629,-151.0,0.00015718,2]
[338854383,1726944647638,-151.0,0.00015718,2]
[338854384,1726944647647,-160.921905,0.00015718,2]
[338854385,1726944647656,-151.0,0.00015718,2]
[338854386,1726944647665,-151.0,0.00015718,2]
[338854387,1726944647675,-151.0,0.00015718,2]
[338854388,1726944647683,-151.0,0.00015718,2]
[338854389,1726944647692,-156.338537,0.00015718,2]
[338854390,1726944647701,-151.0,0.00015718,2]
[338854391,1726944647711,-151.0,0.00015718,2]
[338854392,1726944647720,-151.0,0.00015718,2]